[Event "Titled Tuesday Blitz February 15 Early 2022"]
[White "Nurmanova, Alua"]
[Black "Goryachkina, Aleksandra"]
[WhiteFideId "13729390"]
[BlackFideId "4147103"]
[WhiteElo "1851"]
[BlackElo "2426"]
[Result "0-1"]
[Round "10"]
[TimeControl "180+1"]
[Date "2022.02.15"]
[WhiteClock "0:00:02"]
[BlackClock "0:00:03"]

1. e4 {[%clk 0:03:00]}  c5 {[%clk 0:02:59]} 2. Nf3 {[%clk 0:03:00]}  e6 {[%clk 0:03:00]} 3. d4 {[%clk 0:03:01]}  cxd4 {[%clk 0:03:00]} 4. Nxd4 {[%clk 0:03:02]}  Nf6 {[%clk 0:03:01]} 5. Nc3 {[%clk 0:03:02]}  Nc6 {[%clk 0:03:01]} 6. Ndb5 {[%clk 0:02:59]}  d6 {[%clk 0:03:00]} 7. Bf4 {[%clk 0:02:58]}  e5 {[%clk 0:03:00]} 8. Bg5 {[%clk 0:02:58]}  a6 {[%clk 0:03:00]} 9. Bxf6 {[%clk 0:02:57]}  gxf6 {[%clk 0:03:00]} 10. Na3 {[%clk 0:02:57]}  b5 {[%clk 0:03:00]} 11. Nd5 {[%clk 0:02:58]}  Bg7 {[%clk 0:02:59]} 12. Bd3 {[%clk 0:02:47]}  O-O {[%clk 0:02:58]} 13. O-O {[%clk 0:02:45]}  Ne7 {[%clk 0:02:54]} 14. c4 {[%clk 0:02:40]}  f5 {[%clk 0:02:37]} 15. Nxe7+ {[%clk 0:02:15]}  Qxe7 {[%clk 0:02:37]} 16. Qh5 {[%clk 0:02:10]}  f4 {[%clk 0:02:16]} 17. Rfe1 {[%clk 0:02:02]}  b4 {[%clk 0:02:11]} 18. Nc2 {[%clk 0:02:02]}  a5 {[%clk 0:02:10]} 19. Rad1 {[%clk 0:01:45]}  Kh8 {[%clk 0:02:05]} 20. g3 {[%clk 0:01:39]}  Bf6 {[%clk 0:02:00]} 21. Bf1 {[%clk 0:00:44]}  Rg8 {[%clk 0:01:53]} 22. Bh3 {[%clk 0:00:38]}  Rg5 {[%clk 0:01:47]} 23. Qh6 {[%clk 0:00:38]}  Bxh3 {[%clk 0:01:11]} 24. Qxh3 {[%clk 0:00:39]}  Rag8 {[%clk 0:01:11]} 25. Kh1 {[%clk 0:00:36]}  Qc7 {[%clk 0:01:08]} 26. b3 {[%clk 0:00:35]}  R8g6 {[%clk 0:00:58]} 27. Rg1 {[%clk 0:00:20]}  Qc5 {[%clk 0:00:43]} 28. Rd2 {[%clk 0:00:15]}  Kg7 {[%clk 0:00:40]} 29. Qd7 {[%clk 0:00:13]}  Rh6 {[%clk 0:00:22]} 30. gxf4 {[%clk 0:00:08]}  exf4 {[%clk 0:00:17]} 31. Rxg5+ {[%clk 0:00:04]}  Qxg5 {[%clk 0:00:11]} 32. Rd1 {[%clk 0:00:04]}  Rg6 {[%clk 0:00:10]} 33. Qh3 {[%clk 0:00:02]}  Be5 {[%clk 0:00:09]} 34. Qf3 {[%clk 0:00:02]}  h5 {[%clk 0:00:06]} 35. Rf1 {[%clk 0:00:02]}  Qg4 {[%clk 0:00:06]} 36. Qxg4 {[%clk 0:00:02]}  hxg4 {[%clk 0:00:07]} 37. Rg1 {[%clk 0:00:02]}  Kf6 {[%clk 0:00:07]} 38. Ne1 {[%clk 0:00:03]}  f3 {[%clk 0:00:06]} 39. Nd3 {[%clk 0:00:03]}  Ke6 {[%clk 0:00:05]} 40. Nxe5 {[%clk 0:00:03]}  Kxe5 {[%clk 0:00:06]} 41. Re1 {[%clk 0:00:03]}  Re6 {[%clk 0:00:04]} 42. Kg1 {[%clk 0:00:03]}  Kf4 {[%clk 0:00:04]} 43. Rd1 {[%clk 0:00:03]}  Kxe4 {[%clk 0:00:04]} 44. Rd5 {[%clk 0:00:03]}  Kf4 {[%clk 0:00:04]} 45. Rd4+ {[%clk 0:00:03]}  Re4 {[%clk 0:00:04]} 46. Rd1 {[%clk 0:00:03]}  Re2 {[%clk 0:00:04]} 47. Rd4+ {[%clk 0:00:02]}  Kg5 {[%clk 0:00:04]} 48. Rd1 {[%clk 0:00:03]}  Rxa2 {[%clk 0:00:03]} 49. h4+ {[%clk 0:00:02]}  Kxh4 {[%clk 0:00:03]} 50. Rd5 {[%clk 0:00:02]}  Ra1+ {[%clk 0:00:03]} 51. Kh2 {[%clk 0:00:02]}  Rf1 {[%clk 0:00:03]} 52. Rd2 {[%clk 0:00:02]}  f5 {[%clk 0:00:03]} 0-1


[Site "https://www.chess.com"]

[Event "Titled Tuesday Blitz February 15 Early 2022"]
[White "Osmak, Yuliia"]
[Black "Stepanencu, Nicodim-Cosmin"]
[WhiteFideId "14101602"]
[BlackFideId "1256220"]
[WhiteElo "2302"]
[BlackElo "1809"]
[Result "0-1"]
[Round "10"]
[TimeControl "180+1"]
[Date "2022.02.15"]
[WhiteClock "0:00:41"]
[BlackClock "0:00:39"]

1. e4 {[%clk 0:02:59]}  e6 {[%clk 0:02:55]} 2. d4 {[%clk 0:02:58]}  d5 {[%clk 0:02:56]} 3. e5 {[%clk 0:02:59]}  c5 {[%clk 0:02:56]} 4. c3 {[%clk 0:02:59]}  Nc6 {[%clk 0:02:54]} 5. Nf3 {[%clk 0:02:58]}  Bd7 {[%clk 0:02:55]} 6. Bd3 {[%clk 0:02:54]}  Nge7 {[%clk 0:02:53]} 7. O-O {[%clk 0:02:46]}  Ng6 {[%clk 0:02:52]} 8. g3 {[%clk 0:02:44]}  Qb6 {[%clk 0:02:49]} 9. dxc5 {[%clk 0:02:08]}  Bxc5 {[%clk 0:02:50]} 10. Qe2 {[%clk 0:02:09]}  Qc7 {[%clk 0:02:40]} 11. Re1 {[%clk 0:02:07]}  a6 {[%clk 0:02:38]} 12. h4 {[%clk 0:02:07]}  f6 {[%clk 0:02:25]} 13. exf6 {[%clk 0:01:58]}  Qxg3+ {[%clk 0:02:23]} 14. Kh1 {[%clk 0:01:48]}  Qh3+ {[%clk 0:02:00]} 15. Nh2 {[%clk 0:01:46]}  Bd6 {[%clk 0:01:33]} 16. f4 {[%clk 0:01:36]}  Nxf4 {[%clk 0:00:57]} 17. Bxf4 {[%clk 0:01:34]}  Bxf4 {[%clk 0:00:58]} 18. fxg7 {[%clk 0:01:33]}  Rg8 {[%clk 0:00:55]} 19. Bxh7 {[%clk 0:00:46]}  Rxg7 {[%clk 0:00:53]} 20. Qh5+ {[%clk 0:00:40]}  Ke7 {[%clk 0:00:47]} 21. Re2 {[%clk 0:00:41]}  Bxh2 {[%clk 0:00:39]} 0-1


[Site "https://www.chess.com"]

[Event "Titled Tuesday Blitz February 15 Early 2022"]
[White "Paravyan, David"]
[Black "Siva Mahadevan"]
[WhiteFideId "4194985"]
[BlackFideId "25043153"]
[WhiteElo "2569"]
[BlackElo "2203"]
[Result "1-0"]
[Round "10"]
[TimeControl "180+1"]
[Date "2022.02.15"]
[WhiteClock "0:00:18"]
[BlackClock "0:00:09"]

1. e4 {[%clk 0:03:00]}  c5 {[%clk 0:02:58]} 2. Nf3 {[%clk 0:03:01]}  Nc6 {[%clk 0:02:59]} 3. d4 {[%clk 0:03:00]}  cxd4 {[%clk 0:03:00]} 4. Nxd4 {[%clk 0:03:00]}  Nf6 {[%clk 0:03:00]} 5. Nc3 {[%clk 0:03:01]}  d6 {[%clk 0:03:01]} 6. Bg5 {[%clk 0:03:00]}  e6 {[%clk 0:03:01]} 7. Qd2 {[%clk 0:02:59]}  a6 {[%clk 0:03:01]} 8. Nxc6 {[%clk 0:03:00]}  bxc6 {[%clk 0:03:01]} 9. O-O-O {[%clk 0:03:01]}  d5 {[%clk 0:03:01]} 10. Bc4 {[%clk 0:01:58]}  Be7 {[%clk 0:02:57]} 11. exd5 {[%clk 0:01:54]}  cxd5 {[%clk 0:02:56]} 12. Bxf6 {[%clk 0:01:54]}  Bxf6 {[%clk 0:02:39]} 13. Nxd5 {[%clk 0:01:50]}  exd5 {[%clk 0:02:36]} 14. Bxd5 {[%clk 0:01:51]}  Ra7 {[%clk 0:02:19]} 15. Bc6+ {[%clk 0:01:48]}  Rd7 {[%clk 0:01:54]} 16. Rhe1+ {[%clk 0:00:51]}  Be7 {[%clk 0:01:51]} 17. Qe3 {[%clk 0:00:51]}  f5 {[%clk 0:01:10]} 18. Qe6 {[%clk 0:00:43]}  Rf8 {[%clk 0:01:10]} 19. f4 {[%clk 0:00:22]}  Rf7 {[%clk 0:01:04]} 20. Rd6 {[%clk 0:00:17]}  Qc7 {[%clk 0:00:57]} 21. Bxd7+ {[%clk 0:00:11]}  Bxd7 {[%clk 0:00:57]} 22. Qd5 {[%clk 0:00:09]}  Bc8 {[%clk 0:00:28]} 23. Rc6 {[%clk 0:00:07]}  Qxf4+ {[%clk 0:00:27]} 24. Kb1 {[%clk 0:00:06]}  Bb7 {[%clk 0:00:27]} 25. Qe6 {[%clk 0:00:06]}  Qb8 {[%clk 0:00:14]} 26. Rb6 {[%clk 0:00:06]}  Qc8 {[%clk 0:00:14]} 27. Qb3 {[%clk 0:00:06]}  Be4 {[%clk 0:00:05]} 28. Rb8 {[%clk 0:00:06]}  Qxb8 {[%clk 0:00:06]} 29. Qxb8+ {[%clk 0:00:06]}  Kd7 {[%clk 0:00:06]} 30. Qa7+ {[%clk 0:00:06]}  Ke6 {[%clk 0:00:07]} 31. Qxa6+ {[%clk 0:00:06]}  Ke5 {[%clk 0:00:06]} 32. Qb5+ {[%clk 0:00:05]}  Kf6 {[%clk 0:00:07]} 33. a4 {[%clk 0:00:05]}  Bd8 {[%clk 0:00:06]} 34. g4 {[%clk 0:00:02]}  g6 {[%clk 0:00:04]} 35. gxf5 {[%clk 0:00:02]}  gxf5 {[%clk 0:00:05]} 36. Qb4 {[%clk 0:00:02]}  Be7 {[%clk 0:00:04]} 37. Qc3+ {[%clk 0:00:02]}  Ke6 {[%clk 0:00:04]} 38. Rxe4+ {[%clk 0:00:03]}  fxe4 {[%clk 0:00:04]} 39. Qc4+ {[%clk 0:00:04]}  Kf6 {[%clk 0:00:05]} 40. Qxe4 {[%clk 0:00:04]}  Rg7 {[%clk 0:00:06]} 41. c3 {[%clk 0:00:05]}  Bd6 {[%clk 0:00:06]} 42. Qc6 {[%clk 0:00:05]}  Ke5 {[%clk 0:00:06]} 43. Qb5+ {[%clk 0:00:06]}  Ke6 {[%clk 0:00:06]} 44. Ka2 {[%clk 0:00:07]}  Rg1 {[%clk 0:00:05]} 45. Qb3+ {[%clk 0:00:07]}  Ke7 {[%clk 0:00:05]} 46. Qb7+ {[%clk 0:00:08]}  Ke6 {[%clk 0:00:06]} 47. Qxh7 {[%clk 0:00:09]}  Re1 {[%clk 0:00:06]} 48. Qh6+ {[%clk 0:00:09]}  Kd7 {[%clk 0:00:06]} 49. Qh5 {[%clk 0:00:10]}  Re5 {[%clk 0:00:06]} 50. Qh7+ {[%clk 0:00:10]}  Kc6 {[%clk 0:00:07]} 51. Qc2 {[%clk 0:00:11]}  Rh5 {[%clk 0:00:07]} 52. Qg2+ {[%clk 0:00:12]}  Kc7 {[%clk 0:00:07]} 53. Qe2 {[%clk 0:00:12]}  Rh4 {[%clk 0:00:08]} 54. Kb3 {[%clk 0:00:12]}  Rxh2 {[%clk 0:00:08]} 55. Qe6 {[%clk 0:00:12]}  Rh4 {[%clk 0:00:09]} 56. Qf7+ {[%clk 0:00:12]}  Kc6 {[%clk 0:00:09]} 57. Qf2 {[%clk 0:00:13]}  Rf4 {[%clk 0:00:09]} 58. Qg2+ {[%clk 0:00:13]}  Kc7 {[%clk 0:00:09]} 59. Qg1 {[%clk 0:00:14]}  Rf8 {[%clk 0:00:09]} 60. Qg7+ {[%clk 0:00:14]}  Kc6 {[%clk 0:00:10]} 61. Qg2+ {[%clk 0:00:15]}  Kc7 {[%clk 0:00:10]} 62. Kc4 {[%clk 0:00:16]}  Rb8 {[%clk 0:00:11]} 63. Qg7+ {[%clk 0:00:15]}  Kc6 {[%clk 0:00:11]} 64. b4 {[%clk 0:00:16]}  Re8 {[%clk 0:00:10]} 65. b5+ {[%clk 0:00:16]}  Kb6 {[%clk 0:00:09]} 66. a5+ {[%clk 0:00:17]}  Kxa5 {[%clk 0:00:09]} 67. Qa7# {[%clk 0:00:18]} 1-0


[Site "https://www.chess.com"]

[Event "Titled Tuesday Blitz February 15 Early 2022"]
[White "Petesch, Gabriel"]
[Black "Mischuk, Dmitry"]
[WhiteFideId "2032465"]
[BlackFideId "14118734"]
[WhiteElo "2374"]
[BlackElo "2256"]
[Result "1-0"]
[Round "10"]
[TimeControl "180+1"]
[Date "2022.02.15"]
[WhiteClock "0:00:20"]
[BlackClock "0:00:05"]

1. Nf3 {[%clk 0:03:00]}  Nf6 {[%clk 0:02:45]} 2. g3 {[%clk 0:03:01]}  g6 {[%clk 0:02:45]} 3. Bg2 {[%clk 0:03:02]}  Bg7 {[%clk 0:02:44]} 4. O-O {[%clk 0:03:03]}  O-O {[%clk 0:02:45]} 5. d4 {[%clk 0:03:04]}  c6 {[%clk 0:02:43]} 6. b3 {[%clk 0:03:05]}  d5 {[%clk 0:02:43]} 7. Bb2 {[%clk 0:03:02]}  Ne4 {[%clk 0:02:42]} 8. Nbd2 {[%clk 0:03:01]}  Nd6 {[%clk 0:02:37]} 9. c4 {[%clk 0:03:00]}  Bf5 {[%clk 0:02:31]} 10. Ne5 {[%clk 0:02:56]}  dxc4 {[%clk 0:01:52]} 11. Ndxc4 {[%clk 0:02:54]}  Nd7 {[%clk 0:01:50]} 12. Nxd6 {[%clk 0:02:48]}  exd6 {[%clk 0:01:51]} 13. Nc4 {[%clk 0:02:45]}  d5 {[%clk 0:01:47]} 14. Ne3 {[%clk 0:02:42]}  Be6 {[%clk 0:01:44]} 15. Qd2 {[%clk 0:02:39]}  Re8 {[%clk 0:01:37]} 16. a3 {[%clk 0:02:34]}  h5 {[%clk 0:01:03]} 17. f4 {[%clk 0:02:28]}  Bh6 {[%clk 0:00:56]} 18. Qd3 {[%clk 0:02:04]}  Nf6 {[%clk 0:00:42]} 19. Rad1 {[%clk 0:01:56]}  Ne4 {[%clk 0:00:41]} 20. Bxe4 {[%clk 0:01:44]}  dxe4 {[%clk 0:00:42]} 21. Qc3 {[%clk 0:01:44]}  Bd5 {[%clk 0:00:32]} 22. Nc4 {[%clk 0:01:39]}  Bg7 {[%clk 0:00:23]} 23. e3 {[%clk 0:01:39]}  Qe7 {[%clk 0:00:22]} 24. Rc1 {[%clk 0:01:34]}  Qe6 {[%clk 0:00:22]} 25. Rc2 {[%clk 0:01:31]}  f6 {[%clk 0:00:17]} 26. Nd2 {[%clk 0:01:27]}  Qf5 {[%clk 0:00:15]} 27. Rf2 {[%clk 0:01:22]}  Kf7 {[%clk 0:00:15]} 28. Nc4 {[%clk 0:01:18]}  Bf8 {[%clk 0:00:15]} 29. Qa5 {[%clk 0:01:12]}  Rec8 {[%clk 0:00:11]} 30. a4 {[%clk 0:01:03]}  Be7 {[%clk 0:00:11]} 31. Ba3 {[%clk 0:00:48]}  b6 {[%clk 0:00:10]} 32. Qa6 {[%clk 0:00:38]}  Bxa3 {[%clk 0:00:09]} 33. Nxa3 {[%clk 0:00:39]}  h4 {[%clk 0:00:09]} 34. Nc4 {[%clk 0:00:39]}  Rd8 {[%clk 0:00:07]} 35. Nd6+ {[%clk 0:00:25]}  Kg8 {[%clk 0:00:04]} 36. Nxf5 {[%clk 0:00:21]}  gxf5 {[%clk 0:00:05]} 37. Qb7 {[%clk 0:00:20]}  Rab8 {[%clk 0:00:05]} 38. Qe7 {[%clk 0:00:20]}  Re8 {[%clk 0:00:05]} 39. Qxf6 {[%clk 0:00:20]}  Re6 {[%clk 0:00:05]} 40. Qg5+ {[%clk 0:00:20]} 1-0


[Site "https://www.chess.com"]

[Event "Titled Tuesday Blitz February 15 Early 2022"]
[White "Piliczewski, Bogusz"]
[Black "Einarsson, Halldor Gretar"]
[WhiteFideId "1104144"]
[BlackFideId "2300150"]
[WhiteElo "1896"]
[BlackElo "2114"]
[Result "1-0"]
[Round "10"]
[TimeControl "180+1"]
[Date "2022.02.15"]
[WhiteClock "0:00:03"]
[BlackClock "0:00:07"]

1. d4 {[%clk 0:02:56]}  Nf6 {[%clk 0:02:58]} 2. Nf3 {[%clk 0:02:56]}  g6 {[%clk 0:02:57]} 3. Bf4 {[%clk 0:02:57]}  Bg7 {[%clk 0:02:55]} 4. e3 {[%clk 0:02:57]}  d5 {[%clk 0:02:54]} 5. h3 {[%clk 0:02:57]}  c5 {[%clk 0:02:53]} 6. c3 {[%clk 0:02:56]}  Nc6 {[%clk 0:02:51]} 7. Bd3 {[%clk 0:02:56]}  Ne4 {[%clk 0:02:49]} 8. Nbd2 {[%clk 0:02:49]}  f5 {[%clk 0:02:44]} 9. O-O {[%clk 0:02:48]}  O-O {[%clk 0:02:43]} 10. Qe2 {[%clk 0:02:18]}  h6 {[%clk 0:02:42]} 11. Rac1 {[%clk 0:02:17]}  Kh7 {[%clk 0:02:40]} 12. Rfd1 {[%clk 0:02:17]}  Re8 {[%clk 0:02:33]} 13. Bh2 {[%clk 0:02:15]}  cxd4 {[%clk 0:02:13]} 14. cxd4 {[%clk 0:02:10]}  Qb6 {[%clk 0:02:04]} 15. Nb3 {[%clk 0:01:44]}  a5 {[%clk 0:01:58]} 16. Nc5 {[%clk 0:01:38]}  e5 {[%clk 0:01:54]} 17. Bxe4 {[%clk 0:01:27]}  dxe4 {[%clk 0:01:38]} 18. Nxe5 {[%clk 0:01:27]}  Nxe5 {[%clk 0:01:34]} 19. dxe5 {[%clk 0:01:19]}  Be6 {[%clk 0:01:14]} 20. Nxe6 {[%clk 0:01:11]}  Rxe6 {[%clk 0:01:13]} 21. Rd7 {[%clk 0:01:12]}  Rc6 {[%clk 0:01:06]} 22. Rcd1 {[%clk 0:01:04]}  Rac8 {[%clk 0:00:58]} 23. R7d2 {[%clk 0:00:49]}  a4 {[%clk 0:00:50]} 24. g4 {[%clk 0:00:44]}  Qc5 {[%clk 0:00:42]} 25. Rd5 {[%clk 0:00:29]}  Qe7 {[%clk 0:00:36]} 26. Bg3 {[%clk 0:00:20]}  Rc2 {[%clk 0:00:29]} 27. R1d2 {[%clk 0:00:19]}  Rc1+ {[%clk 0:00:28]} 28. Kg2 {[%clk 0:00:18]}  Rf8 {[%clk 0:00:22]} 29. Rd7 {[%clk 0:00:11]}  Qe6 {[%clk 0:00:21]} 30. R2d6 {[%clk 0:00:09]}  Qxa2 {[%clk 0:00:18]} 31. gxf5 {[%clk 0:00:06]}  gxf5 {[%clk 0:00:15]} 32. Qh5 {[%clk 0:00:05]}  Qf7 {[%clk 0:00:13]} 33. Rxf7 {[%clk 0:00:03]}  Rxf7 {[%clk 0:00:12]} 34. Qxf7 {[%clk 0:00:03]}  Rc8 {[%clk 0:00:10]} 35. Rd7 {[%clk 0:00:04]}  Rg8 {[%clk 0:00:10]} 36. Qxf5+ {[%clk 0:00:04]}  Kh8 {[%clk 0:00:09]} 37. e6 {[%clk 0:00:04]}  Bf8 {[%clk 0:00:09]} 38. Kf1 {[%clk 0:00:02]}  a3 {[%clk 0:00:08]} 39. Be5+ {[%clk 0:00:03]}  Bg7 {[%clk 0:00:07]} 40. Bxg7+ {[%clk 0:00:03]}  Rxg7 {[%clk 0:00:07]} 41. Qf8+ {[%clk 0:00:03]} 1-0


[Site "https://www.chess.com"]

[Event "Titled Tuesday Blitz February 15 Early 2022"]
[White "Poormosavi, Seyed Kian"]
[Black "Mikhailovsky, Vladimir"]
[WhiteFideId "12585807"]
[BlackFideId "34105414"]
[WhiteElo "2116"]
[BlackElo "2371"]
[Result "0-1"]
[Round "10"]
[TimeControl "180+1"]
[Date "2022.02.15"]
[WhiteClock "0:00:37"]
[BlackClock "0:00:05"]

1. Nf3 {[%clk 0:03:00]}  d5 {[%clk 0:02:59]} 2. g3 {[%clk 0:03:00]}  Nd7 {[%clk 0:03:00]} 3. Bg2 {[%clk 0:02:58]}  e5 {[%clk 0:03:00]} 4. d3 {[%clk 0:02:58]}  Ngf6 {[%clk 0:03:00]} 5. O-O {[%clk 0:02:59]}  c6 {[%clk 0:03:01]} 6. Nbd2 {[%clk 0:03:00]}  Bd6 {[%clk 0:03:01]} 7. e4 {[%clk 0:03:00]}  O-O {[%clk 0:03:01]} 8. Qe2 {[%clk 0:03:01]}  Re8 {[%clk 0:03:01]} 9. c3 {[%clk 0:03:00]}  Nf8 {[%clk 0:03:00]} 10. Rd1 {[%clk 0:02:59]}  Ng6 {[%clk 0:03:00]} 11. Nf1 {[%clk 0:02:58]}  h6 {[%clk 0:02:56]} 12. h4 {[%clk 0:02:58]}  Qe7 {[%clk 0:02:46]} 13. a4 {[%clk 0:02:57]}  a5 {[%clk 0:02:46]} 14. N3h2 {[%clk 0:02:54]}  Be6 {[%clk 0:02:40]} 15. Ne3 {[%clk 0:02:51]}  dxe4 {[%clk 0:02:28]} 16. dxe4 {[%clk 0:02:50]}  Bc5 {[%clk 0:02:25]} 17. Nf5 {[%clk 0:02:48]}  Qc7 {[%clk 0:02:15]} 18. Be3 {[%clk 0:02:46]}  Bxe3 {[%clk 0:02:07]} 19. Qxe3 {[%clk 0:02:44]}  Ne7 {[%clk 0:02:07]} 20. Nxe7+ {[%clk 0:02:07]}  Rxe7 {[%clk 0:02:04]} 21. Nf3 {[%clk 0:01:58]}  Bb3 {[%clk 0:01:54]} 22. Rd3 {[%clk 0:01:54]}  Rd8 {[%clk 0:01:53]} 23. Nd2 {[%clk 0:01:52]}  Rxd3 {[%clk 0:01:50]} 24. Qxd3 {[%clk 0:01:51]}  Rd7 {[%clk 0:01:51]} 25. Qe3 {[%clk 0:01:46]}  Be6 {[%clk 0:01:39]} 26. f3 {[%clk 0:01:39]}  Qd8 {[%clk 0:01:38]} 27. Nf1 {[%clk 0:01:36]}  Ne8 {[%clk 0:01:27]} 28. f4 {[%clk 0:01:30]}  exf4 {[%clk 0:01:26]} 29. gxf4 {[%clk 0:01:31]}  Qxh4 {[%clk 0:01:21]} 30. f5 {[%clk 0:01:25]}  Bc4 {[%clk 0:01:17]} 31. e5 {[%clk 0:01:16]}  Bxf1 {[%clk 0:00:43]} 32. Rxf1 {[%clk 0:01:14]}  Qg5 {[%clk 0:00:33]} 33. Qe4 {[%clk 0:00:53]}  Rd2 {[%clk 0:00:29]} 34. b4 {[%clk 0:00:52]}  axb4 {[%clk 0:00:27]} 35. cxb4 {[%clk 0:00:53]}  Nc7 {[%clk 0:00:23]} 36. e6 {[%clk 0:00:53]}  fxe6 {[%clk 0:00:18]} 37. fxe6 {[%clk 0:00:54]}  Nd5 {[%clk 0:00:18]} 38. b5 {[%clk 0:00:48]}  cxb5 {[%clk 0:00:13]} 39. axb5 {[%clk 0:00:49]}  Qxg2+ {[%clk 0:00:10]} 40. Qxg2 {[%clk 0:00:43]}  Rxg2+ {[%clk 0:00:11]} 41. Kh1 {[%clk 0:00:40]}  Re2 {[%clk 0:00:12]} 42. Rd1 {[%clk 0:00:37]}  Nc3 {[%clk 0:00:09]} 43. Rd7 {[%clk 0:00:36]}  Nxb5 {[%clk 0:00:07]} 44. e7 {[%clk 0:00:35]}  Kf7 {[%clk 0:00:05]} 45. e8=Q+ {[%clk 0:00:35]}  Kxe8 {[%clk 0:00:05]} 46. Rxb7 {[%clk 0:00:36]}  Nd4 {[%clk 0:00:05]} 47. Rxg7 {[%clk 0:00:37]}  Nf3 {[%clk 0:00:05]} 0-1


[Site "https://www.chess.com"]

[Event "Titled Tuesday Blitz February 15 Early 2022"]
[White "Popadic, Dragan"]
[Black "Manukyan, Artyom"]
[WhiteFideId "913650"]
[BlackFideId "13305786"]
[WhiteElo "2199"]
[BlackElo "2034"]
[Result "0-1"]
[Round "10"]
[TimeControl "180+1"]
[Date "2022.02.15"]
[WhiteClock "0:00:16"]
[BlackClock "0:00:15"]

1. e4 {[%clk 0:03:00]}  c5 {[%clk 0:02:58]} 2. Nc3 {[%clk 0:03:00]}  d6 {[%clk 0:02:54]} 3. f4 {[%clk 0:03:00]}  Nc6 {[%clk 0:02:54]} 4. Nf3 {[%clk 0:03:00]}  g6 {[%clk 0:02:54]} 5. Bc4 {[%clk 0:03:00]}  Bg7 {[%clk 0:02:55]} 6. d3 {[%clk 0:02:59]}  e6 {[%clk 0:02:55]} 7. O-O {[%clk 0:02:59]}  Nge7 {[%clk 0:02:56]} 8. Qe1 {[%clk 0:02:59]}  O-O {[%clk 0:02:54]} 9. f5 {[%clk 0:02:59]}  gxf5 {[%clk 0:02:53]} 10. Qh4 {[%clk 0:02:59]}  Ng6 {[%clk 0:02:53]} 11. Qh5 {[%clk 0:02:58]}  fxe4 {[%clk 0:02:53]} 12. dxe4 {[%clk 0:02:58]}  Nce5 {[%clk 0:02:53]} 13. Nxe5 {[%clk 0:02:57]}  Nxe5 {[%clk 0:02:49]} 14. Be2 {[%clk 0:02:57]}  Ng6 {[%clk 0:02:46]} 15. Bg5 {[%clk 0:02:52]}  Qb6 {[%clk 0:02:41]} 16. Rab1 {[%clk 0:02:44]}  Bd7 {[%clk 0:02:24]} 17. Kh1 {[%clk 0:02:39]}  Rae8 {[%clk 0:02:12]} 18. Bh6 {[%clk 0:02:34]}  Qb4 {[%clk 0:02:04]} 19. Bxg7 {[%clk 0:02:29]}  Kxg7 {[%clk 0:02:05]} 20. Rf3 {[%clk 0:02:23]}  Rh8 {[%clk 0:01:28]} 21. Rbf1 {[%clk 0:02:16]}  Ref8 {[%clk 0:01:28]} 22. b3 {[%clk 0:02:04]}  Qd4 {[%clk 0:01:26]} 23. Rg3 {[%clk 0:01:31]}  Qe5 {[%clk 0:01:16]} 24. Qf3 {[%clk 0:01:20]}  Bc6 {[%clk 0:01:13]} 25. Bb5 {[%clk 0:01:12]}  Bxb5 {[%clk 0:01:07]} 26. Nxb5 {[%clk 0:01:11]}  f5 {[%clk 0:01:02]} 27. exf5 {[%clk 0:01:08]}  Rxf5 {[%clk 0:01:03]} 28. Qd1 {[%clk 0:01:08]}  Rxf1+ {[%clk 0:01:00]} 29. Qxf1 {[%clk 0:01:08]}  Rf8 {[%clk 0:01:01]} 30. Qd1 {[%clk 0:01:06]}  a6 {[%clk 0:00:56]} 31. Nc3 {[%clk 0:00:50]}  d5 {[%clk 0:00:51]} 32. Na4 {[%clk 0:00:46]}  Qd4 {[%clk 0:00:46]} 33. Qe1 {[%clk 0:00:43]}  b5 {[%clk 0:00:41]} 34. Nb6 {[%clk 0:00:40]}  Qe4 {[%clk 0:00:29]} 35. Qd1 {[%clk 0:00:34]}  d4 {[%clk 0:00:24]} 36. Nd7 {[%clk 0:00:28]}  Rf5 {[%clk 0:00:21]} 37. h3 {[%clk 0:00:20]}  Qc6 {[%clk 0:00:18]} 38. Nb8 {[%clk 0:00:20]}  Qc7 {[%clk 0:00:17]} 39. Qe1 {[%clk 0:00:16]}  Qxb8 {[%clk 0:00:16]} 40. Rg4 {[%clk 0:00:16]}  Qe5 {[%clk 0:00:15]} 41. Re4 {[%clk 0:00:16]}  Qf6 {[%clk 0:00:14]} 42. Rxe6 {[%clk 0:00:16]}  Rf1+ {[%clk 0:00:14]} 43. Kh2 {[%clk 0:00:16]}  Rxe1 {[%clk 0:00:15]} 44. Rxf6 {[%clk 0:00:16]}  Kxf6 {[%clk 0:00:15]} 0-1


[Site "https://www.chess.com"]

[Event "Titled Tuesday Blitz February 15 Early 2022"]
[White "Pourkashiyan, Atousa"]
[Black "Osmonbekov, Talaibek"]
[WhiteFideId "12502014"]
[BlackFideId "2017253"]
[WhiteElo "2247"]
[BlackElo "2135"]
[Result "0-1"]
[Round "10"]
[TimeControl "180+1"]
[Date "2022.02.15"]
[WhiteClock "0:00:36"]
[BlackClock "0:01:19"]

1. e4 {[%clk 0:03:00]}  c5 {[%clk 0:03:00]} 2. Nf3 {[%clk 0:02:43]}  d6 {[%clk 0:02:59]} 3. d4 {[%clk 0:02:44]}  cxd4 {[%clk 0:03:00]} 4. Nxd4 {[%clk 0:02:44]}  Nf6 {[%clk 0:03:00]} 5. Nc3 {[%clk 0:02:45]}  g6 {[%clk 0:03:00]} 6. Bc4 {[%clk 0:02:45]}  Bg7 {[%clk 0:03:01]} 7. O-O {[%clk 0:02:40]}  O-O {[%clk 0:03:01]} 8. h3 {[%clk 0:02:35]}  Nc6 {[%clk 0:03:01]} 9. Be3 {[%clk 0:02:34]}  Bd7 {[%clk 0:02:57]} 10. f4 {[%clk 0:02:31]}  Rc8 {[%clk 0:02:54]} 11. Qf3 {[%clk 0:02:18]}  Nxd4 {[%clk 0:02:45]} 12. Bxd4 {[%clk 0:02:08]}  Rxc4 {[%clk 0:02:44]} 13. Bxa7 {[%clk 0:01:56]}  b6 {[%clk 0:02:32]} 14. Qe3 {[%clk 0:01:51]}  Rb4 {[%clk 0:02:23]} 15. Rab1 {[%clk 0:01:26]}  b5 {[%clk 0:02:03]} 16. Rfd1 {[%clk 0:01:15]}  Qa8 {[%clk 0:01:51]} 17. e5 {[%clk 0:01:07]}  Ne4 {[%clk 0:01:49]} 18. Nd5 {[%clk 0:00:59]}  Ra4 {[%clk 0:01:40]} 19. Bd4 {[%clk 0:00:40]}  Qxd5 {[%clk 0:01:37]} 20. c3 {[%clk 0:00:37]}  Bc6 {[%clk 0:01:32]} 21. exd6 {[%clk 0:00:35]}  Bxd4 {[%clk 0:01:29]} 22. Rxd4 {[%clk 0:00:34]}  Rxd4 {[%clk 0:01:28]} 23. Qxd4 {[%clk 0:00:34]}  Qxd4+ {[%clk 0:01:25]} 24. cxd4 {[%clk 0:00:35]}  exd6 {[%clk 0:01:20]} 25. Rc1 {[%clk 0:00:36]}  Bd5 {[%clk 0:01:20]} 26. b3 {[%clk 0:00:36]}  Ra8 {[%clk 0:01:19]} 0-1


[Site "https://www.chess.com"]